[Event "15th Chennai GM Open 2025"]
[Site "Chennai"]
[Date "2025.01.02"]
[Round "1.5"]
[White "Choubey Saurabh"]
[Black "Mayank Chakraborty"]
[Result "1/2-1/2"]
[ECO "E61"]
[WhiteElo "2083"]
[BlackElo "2457"]
[Annotator "TA"]
[PlyCount "120"]
[EventDate "2025.01.02"]
[EventType "swiss"]
[EventCountry "IND"]
[SourceTitle "playchess.com"]
[Source "ChessBase"]
[SourceQuality "1"]
[TimeControl "5400+30"]

{[%evp 13,120,40,43,8,27,11,43,29,22,25,47,51,91,91,89,102,117,118,109,37,32,-58,-74,-65,-6,0,-7,-7,-7,-7,-7,-2,0,0,0,0,0,0,0,0,0,0,0,0,0,0,0,0,0,0,0,0,5,5,6,0,0,0,22,0,0,0,0,0,0,0,0,0,0,0,0,0,0,0,0,0,0,0,0,0,0,0,0,0,0,0,0,0,0,0,0,0,0,0,21,8,8,8,13,8,55,0,0,0,48,0,0,0,56]} 1. d4 {[%emt 0:00:34]} Nf6 {[%emt 0:00:02]} 2. c4 {[%emt 0:00:46]} g6 {[%emt 0:00:03]} 3. Nf3 {[%emt 0:02:31]} Bg7 {[%emt 0:00:02]} 4. Nc3 {[%emt 0:05:37]} O-O {[%emt 0:00:02]} 5. e3 {[%emt 0:02:39]} d6 {[%emt 0:02:38]} 6. Be2 {[%emt 0:01:04]} b6 {[%emt 0:01:33]} 7. O-O {[%emt 0:00:58]} Bb7 {[%emt 0:00:03]} 8. b3 {[%emt 0:03:13]} Nbd7 {[%emt 0:03:52]} 9. Bb2 {[%emt 0:01:09]} e5 {[%emt 0:04:12]} 10. d5 {[%emt 0:02:53] White is slightly better.} Qe7 {[%emt 0:10:08]} 11. e4 {[%emt 0:07:25]} Nh5 {[%emt 0:00:15][%cal Bf6h5,Bh5g3,Bg3e2][%mdl 32]} 12. g3 {[%emt 0:00:52]} f5 {[%emt 0:03:00]} 13. exf5 {[%emt 0:11:05]} gxf5 {[%emt 0:00:25] [#]} 14. Nxe5 $1 {[%emt 0:10:27]} Nxg3 {[%emt 0:02:37] [#]} (14... Bxe5 15. Bxh5) 15. Nxd7 $1 {[%emt 0:05:41]} Nxe2+ {[%emt 0:01:14]} 16. Qxe2 {[%emt 0:01:19]} (16. Nxe2 $16 Qxd7 17. Bxg7 Qxg7+ 18. Kh1) 16... Qxd7 $14 {[%emt 0:01:23]} 17. Nb5 {[%emt 0:12:48]} (17. Kh1 $14) 17... Rae8 $15 {[%emt 0:05:15]} 18. Qd2 {[%emt 0:00:46][%cal Ob2g7]} c6 {[%emt 0:09:30]} ({Better is} 18... Bxb2 $1 $15 19. Qxb2 Bxd5) 19. Bxg7 $11 {[%emt 0:10:26]} Qxg7+ {[%emt 0:00:06]} 20. Kh1 {[%emt 0:00:22]} cxd5 $1 {[%emt 0:04:08]} (20... cxb5 $2 {perishes.} 21. Rg1 Rf6 22. Rxg7+ Kxg7 23. Rg1+ (23. cxb5 Re5 $18) 23... Rg6 24. Qd4+ (24. cxb5 Re5 $18) 24... Kf7 25. Qf4 $18 (25. cxb5 Re4 $18)) 21. cxd5 {[%emt 0:05:55][%cal Of1g1] Threatens to win with Rg1!} Re5 {[%emt 0:04:42]} 22. Nc3 {[%emt 0:02:15] Strongly threatening Rg1.} Qf7 {[%emt 0:13:28][%cal Rb7d5]} 23. Rad1 {[%emt 0:02:42]} Qf6 {[%emt 0:07:50]} 24. f4 {[%emt 0:01:15]} Re7 {[%emt 0:00:38]} 25. Rg1+ {[%emt 0:01:11]} Kh8 {[%emt 0:00:44]} 26. Rg3 {[%emt 0:00:20]} Rg8 {[%emt 0:12:07]} 27. Rxg8+ {[%emt 0:01:33]} Kxg8 {[%emt 0:00:02]} 28. Rg1+ {[%emt 0:00:14]} Rg7 {[%emt 0:00:43]} 29. Qe3 {[%emt 0:01:18] Black must now prevent Qe8+.} Rxg1+ {[%emt 0:01:43]} 30. Kxg1 {[%emt 0:00:30][%mdl 4096] Endgame. KQB-KQN} Kf8 {[%emt 0:01:50]} 31. a4 {[%emt 0:01:47]} Qg6+ {[%emt 0:02:48]} 32. Kf2 {[%emt 0:00:46]} Qh5 {[%emt 0:01:17]} 33. h3 {[%emt 0:00:38]} Qh4+ {[%emt 0:01:01]} 34. Qg3 {[%emt 0:00:11]} Qf6 {[%emt 0:01:06]} 35. Qe3 {[%emt 0:00:02]} h5 {[%emt 0:01:11]} 36. Kg2 {[%emt 0:01:19]} h4 {[%emt 0:00:24]} 37. Kf2 {[%emt 0:00:14]} Qg7 {[%emt 0:01:31]} 38. b4 {[%emt 0:00:53][%cal Bb3b4,Bb4b5][%mdl 32]} Ba6 {[%emt 0:01:45]} 39. b5 {[%emt 0:01:15]} Bb7 {[%emt 0:00:45]} 40. Qd3 {[%emt 0:00:23]} Ke8 {[%emt 0:01:11]} 41. Ne2 {[%emt 0:00:42]} Qf7 {[%emt 0:00:25]} 42. Nc3 {[%emt 0:00:50]} Qg7 {[%emt 0:00:30]} 43. Ne2 {[%emt 0:00:16]} Qf7 {[%emt 0:00:15]} 44. Nc3 {[%emt 0:00:06]} Qf6 {[%emt 0:01:02]} 45. Ne2 {[%emt 0:01:54]} Kd7 {[%emt 0:00:51]} 46. Nc3 {[%emt 0:01:08]} Kd8 {[%emt 0:00:07]} 47. Ne2 {[%emt 0:00:34]} Qf7 {[%emt 0:00:17]} 48. Nc3 {[%emt 0:00:02]} Qg7 {[%emt 0:01:00]} 49. Ne2 {[%emt 0:00:32]} Qf7 {[%emt 0:00:32]} 50. Nc3 {[%emt 0:00:03]} Qg7 {[%emt 0:00:04]} 51. Ne2 {[%emt 0:01:28]} Qc7 {[%emt 0:01:18]} 52. Qxf5 {[%emt 0:00:40] aiming for Qf8+.} Qc5+ {[%emt 0:00:03]} 53. Ke1 {[%emt 0:00:37]} Bxd5 {[%emt 0:00:35]} 54. Qf6+ {[%emt 0:00:45]} Kd7 {[%emt 0:00:30]} 55. Qxh4 {[%emt 0:00:14]} Qb4+ {[%emt 0:00:47]} 56. Kf2 {[%emt 0:00:15]} Qc5+ {[%emt 0:00:28]} (56... Qxa4 $11 57. Qh7+ Ke8) 57. Ke1 {[%emt 0:00:18]} Qb4+ {[%emt 0:00:04]} 58. Kf2 {[%emt 0:00:05]} Qc5+ {[%emt 0:01:23]} 59. Ke1 {[%emt 0:00:13]} (59. Kf1 $14) 59... Qb4+ {[%emt 0:01:22]} 60. Kf2 {[%emt 0:01:31]} (60. Kf1 $11) 60... Qc5+ {[%emt 0:01:04] Weighted Error Value: White=0.09 (flawless) /Black=0.06 (flawless) .  Mistake:       	White=4     	Black=2      Inaccurate:     	---       	Black=2      OK:         	White=23    	Black=16     Best:        	White=2     	Black=7      Strong:       	White=1     	Black=1} 1/2-1/2

[Event "15th Chennai GM Open 2025"]
[Site "Chennai"]
[Date "2025.01.02"]
[Round "1.6"]
[White "Shyaam Nikhil P"]
[Black "Kotikalapudi, Aditya Krishna"]
[Result "1-0"]
[ECO "B26"]
[WhiteElo "2449"]
[BlackElo "2078"]
[Annotator "TA"]
[PlyCount "53"]
[EventDate "2025.01.02"]
[EventType "swiss"]
[EventCountry "IND"]
[SourceTitle "playchess.com"]
[Source "ChessBase"]
[SourceQuality "1"]
[TimeControl "5400+30"]

{[%evp 17,53,-6,0,0,-4,-37,-22,-29,-39,-78,-31,-53,-85,-61,0,-69,-55,-71,88,87,78,54,115,112,713,708,1355,1002,1026,993,1026,978,1354,1319,1553,1039,980,932]} 1. e4 {[%emt 0:00:51]} c5 {[%emt 0:00:17]} 2. Nc3 {[%emt 0:00:55]} Nc6 {[%emt 0:00:27]} 3. g3 {[%emt 0:01:10]} g6 {[%emt 0:00:26]} 4. Bg2 {[%emt 0:00:22]} Bg7 {[%emt 0:01:02]} 5. d3 {[%emt 0:00:41]} Rb8 {[%emt 0:00:47]} 6. Be3 {[%emt 0:01:36]} b5 {[%emt 0:03:07][%cal Bb7b5,Bb5b4][%mdl 32]} 7. Qd2 {[%emt 0:07:19]} b4 {[%emt 0:00:20]} 8. Nd1 {[%emt 0:00:11]} d6 {[%emt 0:00:40]} 9. Ne2 {[%emt 0:01:20]} a5 {[%emt 0:02:23]} 10. O-O {[%emt 0:02:09]} h5 {[%emt 0:01:45]} 11. f4 {[%emt 0:02:35]} h4 {[%emt 0:13:30]} 12. c3 {[%emt 0:12:01][%cal Bc2c3,Bc3d4,Bd4d5][%mdl 32] The position is equal.} hxg3 {[%emt 0:00:00]} 13. Nxg3 {[%emt 0:10:01][%cal Oe4e5]} Bd7 {[%emt 0:03:26]} (13... e5 $17) 14. d4 {[%emt 0:01:39]} cxd4 {[%emt 0:01:56]} 15. cxd4 {[%emt 0:00:07] [#] Threatens to win with d5.} a4 {[%emt 0:00:10]} ({Black should try} 15... e5 $15 16. dxe5 dxe5) 16. Nf2 {[%emt 0:04:22]} (16. f5 $11 gxf5 17. Nxf5 Bxf5 18. Rxf5) 16... Na5 $1 $15 {[%emt 0:07:00]} 17. Rfc1 {[%emt 0:05:18] Prevents Nc4.} Be6 $2 {[%emt 0:07:51] [#]} (17... b3 $17 {keeps the pressure on. aiming for ...bxa2.} 18. a3 Bb5) 18. d5 $1 $36 {[%emt 0:03:27][%mdl 2048] Black is under strong pressure.} Bd7 {[%emt 0:10:50]} 19. Bd4 {[%emt 0:00:18]} Bxd4 {[%emt 0:01:59]} (19... Kf8 $1 $14) 20. Qxd4 {[%emt 0:00:06]} Rh4 {[%emt 0:00:14][%mdl 8192] This costs Black the game.} (20... f6 $16) 21. Qg7 $18 {[%emt 0:00:32][%cal Rg7g8] White is clearly winning.} Bc8 {[%emt 0:13:57]} 22. Qxg8+ {[%emt 0:01:00]} Kd7 {[%emt 0:00:02]} 23. Qxf7 {[%emt 0:01:51]} Qe8 {[%emt 0:01:07]} 24. Qg7 {[%emt 0:03:09]} Rxf4 {[%emt 0:01:24]} 25. Qd4 {[%emt 0:00:37]} Qd8 {[%emt 0:04:01]} 26. Qa7+ {[%emt 0:01:48]} Bb7 {[%emt 0:00:08]} 27. Qe3 {[%emt 0:03:00] Weighted Error Value: White=0.24 (precise) /Black=0.37.  Loses game:     	---       	Black=1      Mistake:       	White=1     	Black=4      Inaccurate:     	White=2     	Black=1      OK:         	White=2     	Black=4      Best:        	White=1     	Black=1      Strong:       	White=1     	Black=1} 1-0

[Event "15th Chennai GM Open 2025"]
[Site "Chennai"]
[Date "2025.01.02"]
[Round "1.7"]
[White "Mehta Naitik R"]
[Black "Rios Gomez, Cristhian Camilo"]
[Result "0-1"]
[ECO "B30"]
[WhiteElo "2075"]
[BlackElo "2435"]
[Annotator "TA"]
[PlyCount "70"]
[EventDate "2025.01.02"]
[EventType "swiss"]
[EventCountry "IND"]
[SourceTitle "playchess.com"]
[Source "ChessBase"]
[SourceQuality "1"]
[TimeControl "5400+30"]

{[%evp 9,70,0,0,-35,0,-12,0,-29,-12,-26,-19,-42,-47,-104,-76,-79,-70,-82,0,0,0,-77,-79,-73,-68,-219,-230,-186,-213,-316,-320,-518,-498,-526,-499,-531,-536,-492,-489,-595,-620,-559,-537,-627,-585,-654,-643,-625,-626,-722,-700,-689,-706,-679,-677,-1121,-1122,-1003,-991,-29971,-29960,-4935,-3821]} 1. e4 {[%emt 0:01:28]} c5 {[%emt 0:00:24]} 2. Nf3 {[%emt 0:01:02]} Nc6 {[%emt 0:00:12]} 3. g3 {[%emt 0:00:23]} e5 {[%emt 0:00:54]} 4. Bg2 {[%emt 0:00:49]} g6 {[%emt 0:00:57]} 5. h4 {[%emt 0:02:38]} Nf6 {[%emt 0:00:19]} 6. d3 {[%emt 0:01:43]} h6 {[%emt 0:00:30]} 7. O-O {[%emt 0:10:46]} Bg7 {[%emt 0:02:08]} 8. Nbd2 {[%emt 0:19:39][%cal Ob2b4]} d5 9. c3 {[%emt 0:02:20][%cal Oh4h5]} O-O {[%emt 0:08:17]} 10. Re1 {[%emt 0:08:51][%cal Oh4h5]} d4 {[%emt 0:05:20]} 11. c4 {[%emt 0:02:39]} ({White should try} 11. Nc4 $15) 11... Ng4 {[%emt 0:00:19]} 12. Nh2 {[%emt 0:02:10]} Nxh2 {[%emt 0:00:12]} 13. Kxh2 {[%emt 0:00:02]} f5 {[%emt 0:00:02] Black is more active.} ({Black should play} 13... Be6 $17) 14. exf5 $11 {[%emt 0:00:52]} gxf5 {[%emt 0:00:09][%cal Oe5e4]} 15. a3 {[%emt 0:18:41] [#]} (15. Bd5+ $1 $11 Kh8 16. Nf3) 15... e4 $1 $17 {[%emt 0:06:51]} 16. dxe4 {[%emt 0:00:39]} f4 {[%emt 0:00:07]} 17. e5 $2 {[%emt 0:03:00]} fxg3+ {[%emt 0:02:28]} (17... Bxe5 18. Bd5+ Kg7 19. Kg2 fxg3 20. fxg3 $15) 18. fxg3 {[%emt 0:00:07]} Nxe5 {[%emt 0:01:44]} 19. Rxe5 {[%emt 0:03:28]} (19. Bd5+ $142 Kh8 20. Nf3) 19... Bxe5 $19 {[%emt 0:00:10]} 20. Qh5 $2 {[%emt 0:00:35] [#]} (20. Bd5+ {was the only chance.} Kh8 21. Nf3) 20... Bxg3+ $1 {[%emt 0:00:49][%mdl 512]} 21. Kg1 {[%emt 0:02:41]} (21. Kh1 Qxh4+) 21... Bf2+ {[%emt 0:01:41]} (21... Bxh4 $2 22. Qg6+ (22. Nf3 Bf6 $17) 22... Kh8 23. Qxh6+ Kg8 24. Bd5+ $18) 22. Kh1 {[%emt 0:00:44] Threatens to win with Qg6+.} Qxh4+ {[%emt 0:04:03]} 23. Qxh4 {[%emt 0:00:01]} Bxh4 {[%emt 0:00:11]} 24. Ne4 {[%emt 0:00:10]} Kh7 {[%emt 0:14:51]} 25. Nxc5 {[%emt 0:04:44]} Bg4 {[%emt 0:00:05]} 26. Be4+ {[%emt 0:02:49]} Kg7 {[%emt 0:00:13]} 27. Bd2 {[%emt 0:00:31]} Rae8 {[%emt 0:00:53]} 28. Rg1 {[%emt 0:03:32]} h5 {[%emt 0:00:06]} 29. Bxb7 {[%emt 0:00:17]} Re2 {[%emt 0:00:12][%cal Of8f2]} 30. Rg2 {[%emt 0:00:30]} Rf1+ {[%emt 0:00:16]} 31. Kh2 {[%emt 0:00:38]} Rff2 {[%emt 0:00:16]} 32. Bb4 {[%emt 0:00:56]} Rxg2+ {[%emt 0:00:54]} 33. Bxg2 {[%emt 0:00:01]} Be7 {[%emt 0:00:38][%cal Oe7c5] and ...Bxc5! should not be overlooked} 34. Kg1 {[%emt 0:00:56]} Bxc5 {[%emt 0:01:16]} 35. Bxc5 {[%emt 0:00:19]} d3 {[%emt 0:00:06]} (35... Rxb2 $2 {perishes.} 36. Bxd4+ Kf7 37. Bxb2 $18) 0-1

[Event "15th Chennai GM Open 2025"]
[Site "Chennai"]
[Date "2025.01.02"]
[Round "1.8"]
[White "Das, Sayantan"]
[Black "Arshpreet Singh"]
[Result "1-0"]
[ECO "B44"]
[WhiteElo "2434"]
[BlackElo "2073"]
[Annotator "TA"]
[PlyCount "109"]
[EventDate "2025.01.02"]
[EventType "swiss"]
[EventCountry "IND"]
[SourceTitle "playchess.com"]
[Source "ChessBase"]
[SourceQuality "1"]
[TimeControl "5400+30"]

{[%evp 9,109,17,44,39,63,36,56,49,60,36,75,70,143,67,95,102,95,92,90,89,93,91,138,97,85,91,87,75,82,89,96,97,95,97,94,100,100,102,87,101,109,110,119,115,123,113,164,170,176,170,193,193,185,175,201,138,195,122,99,94,107,102,91,43,36,37,36,34,20,16,41,12,8,8,8,8,8,24,67,4,87,91,93,95,152,113,96,118,210,200,201,206,475,481,470,467,459,427,865,818,29982,29983]} 1. e4 {[%emt 0:00:18]} c5 {[%emt 0:00:02]} 2. Nf3 {[%emt 0:00:12]} e6 {[%emt 0:00:05]} 3. d4 {[%emt 0:02:06]} cxd4 {[%emt 0:00:02]} 4. Nxd4 {[%emt 0:00:07]} Nc6 {[%emt 0:00:03]} 5. g3 {[%emt 0:00:31]} Qc7 {[%emt 0:04:23]} 6. Bg2 {[%emt 0:01:21]} Nf6 {[%emt 0:03:55][%cal Of6e4]} 7. O-O {[%emt 0:00:45]} Nxd4 {[%emt 0:02:23]} 8. Qxd4 {[%emt 0:01:19]} Bc5 {[%emt 0:00:01]} 9. Qc3 {[%emt 0:05:53]} Qb6 {[%emt 0:05:27]} 10. Nd2 {[%emt 0:15:05][%cal Bb1d2,Bd2f3,Bf3d4][%mdl 32]} Bd4 {[%emt 0:15:28]} ({Black should try} 10... Qc7 $14) 11. Qb3 {[%emt 0:00:00]} (11. Qd3 $16 {aiming for Nc4.} e5 12. Nb3) 11... Qxb3 {[%emt 0:01:45]} 12. axb3 {[%emt 0:00:00]} d5 {[%emt 0:01:11] Repels Nc4} 13. exd5 {[%emt 0:00:57]} exd5 {[%emt 0:00:26]} 14. Nf3 {[%emt 0:00:49]} Bb6 {[%emt 0:00:23]} 15. Re1+ {[%emt 0:00:54][%cal Bf1e1,Be1e3,Be3a3,Ba3a5][%mdl 32]} Kf8 {[%emt 0:07:08]} (15... Be6 $142) 16. Be3 {[%emt 0:01:46]} Bxe3 {[%emt 0:00:09]} 17. Rxe3 {[%emt 0:00:07]} (17. fxe3 g6 $11) 17... g6 {[%emt 0:03:48]} 18. Nd4 {[%emt 0:01:09]} Kg7 {[%emt 0:03:07]} 19. b4 {[%emt 0:08:59] White has more active pieces.} Bd7 {[%emt 0:02:38]} 20. Rea3 {[%emt 0:02:50]} a6 {[%emt 0:00:17] [#]} 21. b5 $1 {[%emt 0:00:45]} Rab8 {[%emt 0:00:19]} 22. bxa6 {[%emt 0:01:25]} bxa6 {[%emt 0:00:16]} 23. b3 {[%emt 0:00:35]} (23. Rxa6 Rxb2 24. Ra7 Rb4 $17) 23... Rb4 {[%emt 0:07:18]} 24. Rd1 {[%emt 0:05:02]} Ra8 {[%emt 0:05:49] [#]} 25. Ra5 $1 {[%emt 0:01:53]} Bg4 {[%emt 0:14:34]} 26. f3 {[%emt 0:01:15]} Bd7 {[%emt 0:00:13]} 27. Bf1 {[%emt 0:02:46]} g5 {[%emt 0:03:40]} (27... Bc8 $16 28. c3 Rb6) 28. Rxa6 $18 {[%emt 0:03:05]} Rc8 {[%emt 0:00:40]} 29. g4 {[%emt 0:04:23]} h5 {[%emt 0:01:49]} 30. h3 {[%emt 0:00:05]} Rc3 {[%emt 0:00:36]} 31. Be2 {[%emt 0:04:45]} h4 {[%emt 0:09:14]} 32. Ra2 {[%emt 0:03:21]} Nh7 {[%emt 0:02:23]} (32... Ne8 $16 33. Ra5 Nc7) 33. Ra7 {[%emt 0:00:46]} (33. Ra5 $18) 33... Nf8 $16 {[%emt 0:00:31]} 34. Kf2 {[%emt 0:06:24]} Kf6 {[%emt 0:01:22]} 35. Ra5 {[%emt 0:04:18]} Be6 {[%emt 0:02:50]} 36. Rb5 {[%emt 0:05:49]} (36. Ra6 $16) 36... Rxb5 $14 {[%emt 0:00:12]} 37. Bxb5 {[%emt 0:00:05]} Ng6 {[%emt 0:01:05]} 38. Re1 {[%emt 0:02:53]} Nf4 {[%emt 0:01:19]} 39. Bf1 {[%emt 0:00:06]} Bd7 {[%emt 0:00:18]} 40. Re3 {[%emt 0:01:38]} Rc8 {[%emt 0:00:10]} 41. Ke1 {[%emt 0:00:54]} Ne6 {[%emt 0:00:41]} 42. Nxe6 {[%emt 0:00:24]} fxe6 $11 {[%emt 0:00:04][%mdl 4096] Endgame KRB-KRB. White is a pawn up.} 43. Kd2 {[%emt 0:00:42]} e5 {[%emt 0:02:34]} 44. Re1 {[%emt 0:04:16]} ({Better is} 44. Rc3 $1 $14) 44... d4 {[%emt 0:01:14]} (44... Ra8 $11 {remains equal.}) 45. Ra1 $16 {[%emt 0:01:14]} Bc6 {[%emt 0:00:36]} 46. Bd3 {[%emt 0:01:17]} Ke7 {[%emt 0:00:30]} (46... Bxf3 $2 47. Rf1 Ke7 48. Rxf3 $18) (46... Bd5 $142) 47. Ra7+ {[%emt 0:00:22]} Kd6 {[%emt 0:00:20]} 48. Rf7 {[%emt 0:00:05]} Rg8 {[%emt 0:00:40]} (48... Bd5 $16 49. Rf6+ Ke7) 49. Rf6+ $18 {[%emt 0:00:29]} Kd7 {[%emt 0:00:29]} 50. Rf5 {[%emt 0:05:12]} Bd5 $2 {[%emt 0:00:29]} (50... Kd6 {was necessary.} 51. Rf6+ Kc7) 51. Rxe5 {[%emt 0:01:43]} Bxf3 {[%emt 0:00:05]} 52. Be4 {[%emt 0:00:44]} Rf8 {[%emt 0:00:01]} 53. Rd5+ {[%emt 0:00:36]} Ke6 {[%emt 0:00:31]} (53... Kc7 $142) 54. Rf5 {[%emt 0:00:56]} Rxf5 {[%emt 0:00:18]} 55. gxf5+ {[%emt 0:00:03]} ({Inferior is} 55. Bxf5+ Kd5 $11) 1-0

[Event "15th Chennai GM Open 2025"]
[Site "Chennai"]
[Date "2025.01.02"]
[Round "1.9"]
[White "Rosh Jain"]
[Black "Deepan Chakkravarthy J."]
[Result "0-1"]
[ECO "B06"]
[WhiteElo "2071"]
[BlackElo "2413"]
[Annotator "TA"]
[PlyCount "114"]
[EventDate "2025.01.02"]
[EventType "swiss"]
[EventCountry "IND"]
[SourceTitle "playchess.com"]
[Source "ChessBase"]
[SourceQuality "1"]
[TimeControl "5400+30"]

{[%evp 9,114,23,37,29,27,30,27,20,19,25,20,18,33,29,25,24,21,20,30,18,31,11,16,0,18,7,9,10,12,0,0,0,0,-59,-70,-110,-74,-135,-135,-115,-145,-168,-166,-170,-72,-83,-88,-70,-79,-94,-95,-105,-105,-137,-138,-104,-80,-189,-185,-178,-142,-293,-283,-383,-365,-579,-543,-587,-595,-564,-600,-646,-616,-592,-474,-488,-474,-899,-470,-802,-1375,-2127,-2231,-1460,-1457,-6195,-4664,-4133,-2940,-10862,-6428,-29967,-29969,-29972,-29973,-29973,-29974,-29974,-29975,-29974,-29975,-29976,-29976,-29978,-29979,-29978,-29977]} 1. e4 {[%emt 0:00:02]} g6 {[%emt 0:00:17]} 2. d4 {[%emt 0:00:07]} Bg7 {[%emt 0:00:02]} 3. Nc3 {[%emt 0:00:43]} a6 {[%emt 0:00:07]} 4. a4 {[%emt 0:01:14]} d6 {[%emt 0:00:05]} 5. Bc4 {[%emt 0:01:23]} Nc6 {[%emt 0:00:12]} 6. Nf3 {[%emt 0:01:07]} Nf6 {[%emt 0:00:02]} 7. Be3 {[%emt 0:12:17]} O-O {[%emt 0:04:12][%cal Of6e4]} 8. Bb3 {[%emt 0:03:46]} Bg4 {[%emt 0:00:11]} 9. h3 {[%emt 0:02:34]} Bxf3 {[%emt 0:00:10]} 10. Qxf3 {[%emt 0:00:03]} e5 {[%emt 0:00:07]} 11. dxe5 {[%emt 0:01:52]} dxe5 {[%emt 0:13:19]} 12. Nd5 {[%emt 0:17:50]} Nd4 {[%emt 0:00:00]} 13. Bxd4 {[%emt 0:00:13]} exd4 {[%emt 0:00:00]} 14. Nxf6+ {[%emt 0:14:55]} Bxf6 {[%emt 0:00:00]} (14... Qxf6 {simplifies} 15. Qxf6 Bxf6 16. f4 Rad8) 15. h4 {[%emt 0:07:27][%cal Bh3h4,Bh4h5][%mdl 32]} Qd6 {[%emt 0:00:00]} 16. h5 {[%emt 0:04:28] aiming for hxg6.} g5 {[%emt 0:00:00]} 17. O-O {[%emt 0:02:49]} Rae8 {[%emt 0:00:00]} 18. g3 {[%emt 0:02:48]} Kh8 {[%emt 0:00:00]} 19. Rae1 {[%emt 0:01:44]} Bg7 {[%emt 0:00:16]} 20. Bc4 {[%emt 0:02:17]} (20. Bxf7 $2 Re7 21. e5 (21. h6 $2 Be5 $19) 21... Bxe5 (21... Rexf7 $2 22. Qxf7 Bxe5 23. Qb3 $18) 22. Qxb7 Rexf7 $19 (22... Rfxf7 $2 23. Re2 $19)) 20... Re5 {[%emt 0:15:02]} 21. Qg4 {[%emt 0:10:16] Wards off Qd7} (21. Bxf7 $2 Re7 22. Qg4 (22. h6 $2 Be5 $19) 22... Rexf7 $19 (22... Rfxf7 $2 23. Qxg5 Re5 24. Qd2 $19)) (21. Rd1 $11) 21... Qb4 $1 $15 {[%emt 0:06:50][%csl LRa4,LRb2,LRc4]} 22. Qe2 {[%emt 0:06:24] White is weak on the dark squares} f5 {[%emt 0:02:16]} 23. Bd3 {[%emt 0:00:09]} (23. b3 $142) 23... f4 $17 {[%emt 0:00:04]} (23... Qxa4 24. f4 gxf4 25. gxf4 $15) 24. Qg4 {[%emt 0:04:20]} Qxa4 {[%emt 0:00:07] Black is much more active.} 25. b3 {[%emt 0:00:25]} Qe8 {[%emt 0:01:09]} 26. Ra1 {[%emt 0:01:06]} f3 {[%emt 0:04:59]} (26... h6 $19 {is more deadly.} 27. Rfe1 Qc6) 27. b4 {[%emt 0:00:49]} Qe6 {[%emt 0:01:05]} 28. Qxe6 {[%emt 0:00:18]} Rxe6 {[%emt 0:00:02]} 29. Ra5 {[%emt 0:00:24]} Be5 {[%emt 0:00:14]} 30. Bc4 {[%emt 0:00:30]} Re7 {[%emt 0:00:11]} 31. b5 {[%emt 0:00:36]} axb5 {[%emt 0:01:50]} 32. Rxb5 {[%emt 0:00:07]} b6 {[%emt 0:00:02]} 33. Rd1 {[%emt 0:01:00]} (33. h6 $17) 33... Kg7 $19 {[%emt 0:00:15]} 34. Rd3 {[%emt 0:00:47]} Kh6 {[%emt 0:01:10]} 35. Rbb3 $2 {[%emt 0:00:07]} (35. g4 $17) 35... g4 {[%emt 0:00:46]} (35... Kxh5 36. Rxf3 Ra8 37. Rf5 $11) 36. Bd5 {[%emt 0:00:47]} Kxh5 {[%emt 0:00:58]} 37. Ra3 {[%emt 0:00:01]} (37. Rb5 {was necessary.}) 37... Kg5 {[%emt 0:07:08]} 38. Ra7 {[%emt 0:00:12]} h5 {[%emt 0:09:21]} 39. Rda3 {[%emt 0:00:33]} h4 {[%emt 0:00:15]} 40. gxh4+ {[%emt 0:00:09]} Kxh4 {[%emt 0:00:04]} 41. Ra8 {[%emt 0:01:00]} Ree8 {[%emt 0:00:02]} 42. Rxe8 {[%emt 0:00:36]} Rxe8 {[%emt 0:00:01][%mdl 4096] Endgame KRB-KRB. Black is two pawns up.} 43. Bc6 {[%emt 0:01:05]} (43. Ra8 $142 Rxa8 44. Bxa8) 43... Rd8 {[%emt 0:00:10]} 44. Bd5 {[%emt 0:00:31]} (44. Kf1 $142) 44... Kg5 {[%emt 0:00:09]} 45. Ra8 {[%emt 0:00:33]} Rxa8 {[%emt 0:01:21]} 46. Bxa8 {[%emt 0:00:06] KB-KB. Black is two pawns up.} g3 {[%emt 0:05:52][%cal Od4d3] ( -> ...d3!)} 47. fxg3 {[%emt 0:00:05]} Bxg3 {[%emt 0:00:02] White must now prevent ...Kf4.} 48. e5 {[%emt 0:00:44]} f2+ {[%emt 0:00:30]} (48... Bxe5 49. Kf2 $17) 49. Kg2 {[%emt 0:00:08] [#]} Kf5 $1 {[%emt 0:00:04][%cal Of5e5] ( -> ...Kxe5!)} 50. Bb7 {[%emt 0:00:50] [#]} (50. Kf1 Kxe5) 50... Kxe5 $1 {[%emt 0:00:05]} 51. Ba6 {[%emt 0:00:05]} (51. Bc6 Kf4) 51... Kf4 {[%emt 0:00:05]} 52. Bb5 {[%emt 0:00:26]} Bh4 {[%emt 0:00:02]} 53. Kh3 {[%emt 0:00:16]} Be7 {[%emt 0:00:02]} 54. Kg2 {[%emt 0:00:35]} Ke3 {[%emt 0:00:01]} 55. Kf1 {[%emt 0:00:09]} Bb4 {[%emt 0:00:33]} 56. Bc6 {[%emt 0:00:15]} Be1 {[%emt 0:00:06]} 57. Bb5 {[%emt 0:00:09]} Kd2 {[%emt 0:00:16]} 0-1